bitfinex-derivatives/quotes_BNBF0:USTF0_20250406
["timestamp","ask_amount","ask_price","bid_price","bid_amount"]
[1743909749618,0.29456452,590.95,590.35,0.29152094]
[1743909749815,0.29456452,590.95,590.32,1.26423726]
[1743909750017,0.558,590.97,590.33,0.29152111]
[1743909750314,0.29456328,590.95,590.33,0.29152111]
[1743909752120,0.74156328,590.95,590.33,0.29152111]
[1743909753022,0.447,590.95,590.34,1.26423726]
[1743909753221,0.447,590.95,590.35,0.29152111]
[1743909753422,0.74156577,590.95,590.35,0.29152111]
[1743909753617,0.74156577,590.95,590.36,0.29152127]
[1743909753818,0.74156577,590.95,590.35,0.29152127]
[1743909756023,0.447,590.95,590.35,0.29152127]
[1743909757423,0.74156078,590.95,590.35,0.29152127]
[1743909759024,0.447,590.95,590.35,0.29152127]
[1743909759222,0.447,590.95,590.34,1.26423726]
[1743909759420,0.74156328,590.95,590.35,0.29153062]
[1743909760428,0.74156328,590.95,590.34,0.29153062]
[1743909760624,0.74156328,590.95,590.35,0.29153062]
[1743909760925,0.74156328,590.95,590.36,0.29153062]
[1743909761128,0.74156328,590.95,590.34,0.29153062]
[1743909762128,0.447,590.95,590.34,0.29153062]
[1743909762329,0.74156452,590.95,590.34,0.29153062]
[1743909762930,0.74156452,590.95,590.33,0.29153062]
[1743909764331,0.74156452,590.95,590.32,1.26423726]
[1743909764524,0.74156452,590.95,590.33,0.29153066]
[1743909765033,0.447,590.95,590.33,0.29153066]
[1743909765433,0.74156577,590.95,590.33,0.29153066]
[1743909767833,0.74156577,590.95,590.32,1.26423726]
[1743909768028,0.447,590.95,590.33,0.29152175]
[1743909768332,0.447,590.95,590.34,0.29152175]
[1743909768536,0.74156577,590.95,590.27,0.29152175]
[1743909770930,0.74156577,590.95,590.24,0.29152175]
[1743909771134,0.447,590.95,590.25,0.29152175]
[1743909771430,0.74157699,590.95,590.26,0.29152175]
[1743909771734,0.74157699,590.95,590.24,0.29152175]
[1743909771928,0.74157699,590.95,590.27,0.29152175]
[1743909772134,0.74157699,590.95,590.28,0.29152175]
[1743909772333,0.74157699,590.95,590.24,0.29152175]
[1743909772531,0.74157699,590.95,590.25,0.29152175]
[1743909772734,0.74157699,590.95,590.24,0.29152175]
[1743909772929,0.74157699,590.95,590.26,0.29152175]
[1743909773137,0.74157699,590.95,590.27,0.29152175]
[1743909773332,0.74157699,590.95,590.25,0.29152175]
[1743909773529,0.74157699,590.95,590.26,0.29152175]
[1743909773731,0.74157699,590.95,590.25,0.29152175]
[1743909774033,0.447,590.95,590.25,0.29152175]
[1743909774331,0.74157574,590.95,590.25,0.29152175]
[1743909775438,0.74157574,590.95,590.24,1.26423726]
[1743909775631,0.74157574,590.95,590.26,0.29152154]
[1743909775832,0.74157574,590.95,590.25,0.29152154]
[1743909777040,0.447,590.95,590.25,0.29152154]
[1743909777941,0.447,590.95,590.31,1.26423726]
[1743909778341,0.74156452,590.95,590.32,0.29152131]
[1743909780042,0.447,590.95,590.32,0.29152131]
[1743909780548,0.74156702,590.95,590.34,1.26423726]
[1743909780743,0.74156702,590.95,590.35,0.29152131]
[1743909781346,0.74156702,590.95,590.34,1.26423726]
[1743909781545,0.74156702,590.95,590.35,0.29152311]
[1743909782746,0.74156702,590.95,590.34,1.26423726]
[1743909782942,0.74156702,590.95,590.35,0.29152247]
[1743909783342,0.74156702,590.95,590.34,0.29152247]
[1743909783643,0.74156702,590.95,590.35,0.29152247]
[1743909783848,0.74156702,590.95,590.34,0.29152247]
[1743909784044,0.74156702,590.95,590.35,0.29152247]
[1743909784346,0.74156702,590.95,590.36,0.29152247]
[1743909784546,0.74156702,590.95,590.34,0.29152247]
[1743909784742,0.74156702,590.95,590.35,0.29152247]
[1743909784946,0.74156702,590.95,590.34,0.29152247]
[1743909785141,0.74156702,590.95,590.36,0.29152247]
[1743909785345,0.74156702,590.95,590.37,0.29152247]
[1743909785545,0.74156702,590.95,590.34,0.29152247]
[1743909785744,0.74156702,590.95,590.27,1.26423726]
[1743909785745,0.74156702,590.95,590.35,0.29152247]
[1743909785944,0.447,590.95,590.28,0.29152247]
[1743909786141,0.447,590.95,590.29,0.29152247]
[1743909786347,0.741572,590.95,590.28,0.29152247]
[1743909786544,0.741572,590.95,590.29,0.29152247]
[1743909786742,0.741572,590.95,590.28,0.29152247]
[1743909786945,0.741572,590.95,590.29,0.29152247]
[1743909787146,0.741572,590.95,590.28,0.29152247]
[1743909787345,0.741572,590.95,590.29,0.29152247]
[1743909787545,0.741572,590.95,590.28,0.29152247]
[1743909787744,0.741572,590.95,590.29,0.29152247]
[1743909787949,0.741572,590.95,590.28,0.29152247]
[1743909789051,0.447,590.95,590.28,0.29152247]
[1743909789448,0.741572,590.95,590.28,0.29152247]
[1743909790350,0.741572,590.95,590.22,1.26423726]
[1743909790551,0.741572,590.95,590.23,0.29152404]
[1743909791452,0.741572,590.95,590.22,1.26423726]
[1743909791654,0.741572,590.95,590.23,0.29152128]
[1743909792154,0.741572,590.95,590.21,0.29152128]
[1743909792155,0.447,590.95,590.21,0.29152128]
[1743909792453,0.447,590.95,590.22,0.29152128]
[1743909792654,0.74157824,590.95,590.21,0.29152128]
[1743909792847,0.74157824,590.95,590.22,0.29152128]
[1743909793051,0.74157824,590.95,590.21,0.29152128]
[1743909793251,0.74157824,590.95,590.22,0.29152128]
[1743909793449,0.74157824,590.95,590.21,0.29152128]
[1743909793649,0.74157824,590.95,590.22,0.29152128]
[1743909793849,0.74157824,590.95,590.21,0.29152128]
[1743909794053,0.74157824,590.95,590.22,0.29152128]
[1743909794254,0.74157824,590.95,590.21,0.29152128]
[1743909794449,0.74157824,590.95,590.22,0.29152128]
[1743909794653,0.74157824,590.95,590.23,0.29152128]
[1743909794854,0.74157824,590.95,590.2,1.26423726]
[1743909795054,0.447,590.95,590.24,0.29152515]
[1743909795350,0.74158073,590.95,590.25,0.29152515]
[1743909795547,0.74158073,590.95,590.2,0.29152515]
[1743909795757,0.74158073,590.95,590.21,0.29152515]
[1743909795954,0.74158073,590.95,590.2,0.29152515]
[1743909796763,0.74158073,590.95,590.21,0.29152518]
[1743909796962,0.74158073,590.95,590.2,0.29152518]
[1743909797160,0.74158073,590.95,590.21,0.29152518]
[1743909797359,0.74158073,590.95,590.2,0.29152518]
[1743909797558,0.74158073,590.95,590.21,0.29152518]
[1743909797762,0.74158073,590.95,590.2,0.29152518]
[1743909797961,0.74158073,590.95,590.19,1.26423726]
[1743909797962,0.74158073,590.95,590.21,0.29152518]
[1743909798163,0.447,590.95,590.24,1.26423726]
[1743909798359,0.74158198,590.95,590.24,1.26423726]
[1743909798558,0.74158198,590.95,590.25,0.29152518]
[1743909798863,1.37258198,590.95,590.25,0.29152518]
[1743909800163,1.37258198,590.95,590.26,0.29152391]
[1743909800558,1.37258198,590.95,590.27,0.29152391]
[1743909800759,1.37258198,590.95,590.24,1.26423726]
[1743909800963,1.37258198,590.95,590.28,0.29151956]
[1743909801266,1.078,590.95,590.29,0.29151956]
[1743909801563,1.078,590.95,590.3,0.29151956]
[1743909801761,1.078,590.95,590.25,0.29151956]
[1743909801961,1.078,590.95,590.24,1.26423726]
[1743909801962,1.078,590.95,590.32,1.26423726]
[1743909802159,1.078,590.95,590.33,0.29152078]
[1743909804367,1.078,590.95,590.33,1.55575804]
[1743909804564,1.078,590.95,590.34,0.29152078]
[1743909805168,1.078,590.95,590.33,1.26423726]
[1743909805369,1.078,590.95,590.34,0.29152383]
[1743909806969,1.078,590.95,590.27,0.29152383]
[1743909807269,1.078,590.95,590.28,0.29152441]
[1743909807469,1.078,590.95,590.27,0.29152441]
[1743909807669,1.078,590.95,590.28,0.29152441]
[1743909807969,1.078,590.95,590.29,0.29152441]
[1743909808165,1.078,590.95,590.27,0.29152441]
[1743909808365,1.078,590.95,590.28,0.29152441]
[1743909808570,1.078,590.95,590.27,0.29152441]
[1743909808770,1.078,590.95,590.28,0.2915241]
[1743909809065,1.078,590.95,590.29,0.2915241]
[1743909809270,1.078,590.95,590.3,0.2915241]
[1743909809466,1.078,590.95,590.27,0.2915241]
[1743909809665,1.078,590.95,590.31,0.2915241]
[1743909809865,1.078,590.95,590.26,1.26423726]
[1743909809866,1.078,590.95,590.32,0.2915241]
[1743909810068,1.078,590.95,590.33,0.2915241]
[1743909810269,1.078,590.95,590.27,0.2915241]
[1743909810470,1.078,590.95,590.26,1.26423726]
[1743909810471,1.078,590.95,590.28,0.2915241]
[1743909810669,1.078,590.95,590.27,0.2915241]
[1743909811269,1.078,590.95,590.24,0.2915241]
[1743909813866,1.078,590.95,590.2,1.26423726]
[1743909814067,1.078,590.95,590.21,0.29152449]
[1743909815473,1.078,590.95,590.2,1.26423726]
[1743909815674,1.078,590.95,590.21,0.29152423]
[1743909816174,1.078,590.95,590.25,1.26423726]
[1743909816473,1.078,590.95,590.26,0.29152423]
[1743909818773,1.078,590.95,590.26,1.55576149]
[1743909819073,1.078,590.95,590.27,0.29152246]
[1743909820676,1.078,590.95,590.27,1.26423726]
[1743909820876,1.078,590.95,590.28,0.29152338]
[1743909822580,1.078,590.95,590.29,0.29152387]
[1743909822774,1.078,590.95,590.28,0.29152387]
[1743909822975,1.078,590.95,590.29,0.29152387]
[1743909823177,1.078,590.95,590.28,0.29152387]
[1743909823379,1.078,590.95,590.29,0.29152387]
[1743909823582,1.078,590.95,590.26,0.29152387]
[1743909823880,1.078,590.95,590.27,0.29152387]
[1743909824076,1.078,590.95,590.25,1.26423726]
[1743909824281,1.078,590.95,590.26,0.29152418]
[1743909825783,1.078,590.95,590.28,1.26423726]
[1743909825984,1.078,590.95,590.29,0.29152449]
[1743909827588,1.078,590.95,590.28,1.26423726]
[1743909827887,1.078,590.95,590.29,0.29152419]
[1743909828189,1.078,590.95,590.3,0.29152419]
[1743909828382,1.078,590.95,590.25,1.26423726]
[1743909828383,1.078,590.95,590.26,0.29152419]
[1743909829287,1.078,590.95,590.25,1.26423726]
[1743909829483,1.078,590.95,590.26,0.29152388]
[1743909832784,1.078,590.95,590.25,1.26423726]
[1743909832989,1.078,590.95,590.26,0.29152859]
[1743909834390,1.3725745,590.95,590.26,0.29152859]
[1743909835487,1.3725745,590.95,590.23,0.29152859]
[1743909835685,1.3725745,590.95,590.24,0.29152859]
[1743909835889,1.3725745,590.95,590.23,0.29152859]
[1743909836087,1.3725745,590.95,590.25,0.29152859]
[1743909836291,1.3725745,590.95,590.24,0.29152859]
[1743909836491,1.3725745,590.95,590.25,0.29152859]
[1743909836690,1.3725745,590.95,590.23,0.29152859]
[1743909837092,1.078,590.95,590.23,0.29152859]
[1743909837392,1.37257824,590.95,590.23,0.29152859]
[1743909837991,1.37257824,590.95,590.22,0.29152859]
[1743909838293,1.37257824,590.95,590.23,0.29152859]
[1743909838588,1.37257824,590.95,590.24,0.29152859]
[1743909838792,1.37257824,590.95,590.22,0.29152859]
[1743909840095,1.078,590.95,590.22,0.29152859]
[1743909840393,1.37257948,590.95,590.22,0.29152859]
[1743909840993,1.37257948,590.95,590.21,1.26423726]
[1743909841193,1.37257948,590.95,590.22,0.29152797]
[1743909842795,1.37257948,590.95,590.25,1.26423726]
[1743909842989,1.37257948,590.95,590.26,0.29152797]
[1743909843289,1.078,590.95,590.26,0.29152797]
[1743909843491,1.3725745,590.95,590.26,0.29152797]
[1743909844995,1.3725745,590.95,590.29,1.26423726]
[1743909845291,1.3725745,590.95,590.3,0.29152797]
[1743909845995,1.3725745,590.95,590.29,1.26423726]
[1743909846195,1.078,590.95,590.31,0.29152803]
[1743909846491,0.294572,590.94,590.32,0.29152803]
[1743909846790,0.294572,590.94,590.3,0.29152803]
[1743909846993,0.294572,590.94,590.31,0.29152803]
[1743909847198,0.294572,590.94,590.3,0.29152803]
[1743909847392,0.294572,590.94,590.31,0.29152803]
[1743909847592,0.294572,590.94,590.3,0.29152803]
[1743909849095,0.631,590.95,590.3,0.29152803]
[1743909849391,0.294572,590.94,590.3,0.29152803]
[1743909849692,0.294572,590.94,590.36,1.26423726]
[1743909849892,0.294572,590.94,590.37,0.29152803]
[1743909850193,0.975572,590.94,590.37,0.29152803]
[1743909851102,0.975572,590.94,590.36,1.26423726]
[1743909851298,0.975572,590.94,590.37,0.29152834]
[1743909851897,0.975572,590.94,590.27,0.29152834]
[1743909852102,0.681,590.94,590.38,0.29152834]
[1743909852301,0.681,590.94,590.39,0.29152834]
[1743909852502,0.97557699,590.94,590.27,0.29152834]
[1743909852798,0.97557699,590.94,590.28,0.29152834]
[1743909852997,0.97557699,590.94,590.27,0.29152834]
[1743909854702,0.97557699,590.94,590.26,1.26423726]
[1743909854903,0.97557699,590.94,590.27,0.29152822]
[1743909855100,0.681,590.94,590.27,0.29152822]
[1743909855404,0.97557699,590.94,590.27,0.29152822]
[1743909855703,0.97557699,590.94,590.27,1.55576548]
[1743909855907,0.97557699,590.94,590.28,0.29152822]
[1743909857108,1.60457699,590.94,590.28,0.29152822]
[1743909858210,1.31,590.94,590.28,0.29152822]
[1743909858710,1.60457574,590.94,590.25,0.29152822]
[1743909859814,1.60457574,590.94,590.24,1.26423726]
[1743909860013,1.60457574,590.94,590.25,0.2915251]
[1743909860713,1.60457574,590.94,590.3,1.26423726]
[1743909860912,1.60457574,590.94,590.31,0.2915251]
[1743909861114,1.31,590.94,590.31,0.2915251]
[1743909861414,1.604572,590.94,590.31,0.2915251]
[1743909863320,1.604572,590.94,590.3,1.26423726]
[1743909863513,1.604572,590.94,590.31,0.29152867]
[1743909864017,1.31,590.94,590.31,0.29152867]
[1743909864415,1.604572,590.94,590.31,0.29152867]
[1743909865014,1.604572,590.94,590.3,1.26423726]
[1743909865220,1.604572,590.94,590.31,0.29152425]
[1743909866218,1.604572,590.94,590.32,0.29152425]
[1743909866414,1.604572,590.94,590.29,0.29152425]
[1743909866615,1.604572,590.94,590.33,0.29152425]
[1743909866815,1.604572,590.94,590.34,0.29152425]
[1743909867015,1.31,590.94,590.29,0.29152425]
[1743909867422,1.6045745,590.94,590.29,0.29152425]
[1743909867615,1.6045745,590.94,590.31,1.26423726]
[1743909867819,1.6045745,590.94,590.32,0.29152425]
[1743909870123,1.31,590.94,590.32,0.29152425]
[1743909870423,1.60457076,590.94,590.32,0.29152425]
[1743909871827,1.60457076,590.94,590.32,1.55576151]
[1743909872020,1.60457076,590.94,590.33,0.29152425]
[1743909873026,1.31,590.94,590.33,0.29152425]
[1743909873326,1.60456951,590.94,590.33,0.29152425]
[1743909874229,1.60456951,590.94,590.34,1.26423726]
[1743909874531,1.60456951,590.94,590.35,0.29152425]
[1743909876030,1.31,590.94,590.35,0.29152425]
[1743909876534,1.31,590.94,590.33,0.29152425]
[1743909876732,1.31,590.94,590.34,0.29152425]
[1743909876927,1.31,590.94,590.33,0.29152425]
[1743909877129,1.31,590.94,590.34,0.29152425]
[1743909877327,1.31,590.94,590.33,0.29152425]
[1743909878537,1.31,590.94,590.33,1.55576151]
[1743909878737,1.31,590.94,590.34,0.29152425]
[1743909880638,1.31,590.94,590.33,1.26423726]
[1743909880937,1.31,590.94,590.34,0.29152439]
[1743909881434,1.31,590.94,590.31,0.29152439]
[1743909881632,1.31,590.94,590.32,0.29152439]
[1743909881833,1.31,590.94,590.31,0.29152439]
[1743909882033,1.31,590.94,590.32,0.29152439]
[1743909882233,1.31,590.94,590.31,0.29152439]
[1743909883336,1.31,590.94,590.3,0.29152439]
[1743909883536,1.31,590.94,590.32,0.29152439]
[1743909883741,1.31,590.94,590.33,0.29152439]
[1743909884041,1.31,590.94,590.34,0.29152439]
[1743909884341,1.31,590.94,590.35,0.29152637]
[1743909884641,1.31,590.94,590.36,0.29152637]
[1743909884841,1.31,590.94,590.3,0.29152637]
[1743909885038,1.31,590.94,590.31,0.29152637]
[1743909885341,1.31,590.94,590.32,0.29152637]
[1743909885542,1.31,590.94,590.3,0.29152637]
[1743909885742,1.31,590.94,590.31,0.29152637]
[1743909886041,1.31,590.94,590.32,0.29152637]
[1743909886237,1.31,590.94,590.33,0.29152637]
[1743909886439,1.31,590.94,590.3,0.29152637]
[1743909887546,1.31,590.94,590.32,1.26423726]
[1743909887737,1.31,590.94,590.33,0.29152637]
[1743909890146,1.31,590.94,590.35,1.26423726]
[1743909890445,1.31,590.94,590.36,0.29152637]
[1743909891045,1.31,590.94,590.35,1.26423726]
[1743909891346,1.31,590.94,590.36,0.29152393]
[1743909891547,1.31,590.94,590.35,1.26423726]
[1743909892048,1.31,590.94,590.16,1.26423726]
[1743909892243,1.31,590.94,590.17,0.29152332]
[1743909893943,1.31,590.94,590.11,0.29152332]
[1743909894444,1.31,590.94,590.1,1.26423726]
[1743909894647,1.31,590.94,590.11,0.29152617]
[1743909896052,1.31,590.94,590.1,1.26423726]
[1743909896352,1.31,590.94,590.11,0.29152758]
[1743909899650,1.31,590.94,590.12,0.29152758]
[1743909899850,1.31,590.94,590.1,0.29152758]
[1743909900049,1.31,590.94,590.13,0.29152758]
[1743909900250,1.31,590.94,590.14,0.29152758]
[1743909900455,1.31,590.94,590.1,0.29152758]
[1743909900654,1.31,590.94,590.11,0.29152758]
[1743909900850,1.31,590.94,590.1,0.29152758]
[1743909901056,1.31,590.94,590.18,1.26423726]
[1743909901251,1.31,590.94,590.19,0.29152758]
[1743909901556,1.31,590.94,590.18,1.26423726]
[1743909902550,1.31,590.94,590.19,0.29160857]
[1743909903156,1.31,590.94,590.2,0.29160857]
[1743909903351,0.29466429,590.93,589.98,0.29160857]
[1743909903550,0.29466429,590.93,590.21,0.29160857]
[1743909903856,0.29466429,590.93,590.22,0.29160857]
[1743909904056,0.29466429,590.93,589.98,0.29160857]
[1743909906058,0.33827782,591.23,589.98,0.29160857]
[1743909906257,0.3111681,591.22,589.96,0.29160857]
[1743909906458,0.29462188,590.92,589.97,0.29160857]
[1743909906660,0.33829499,591.2,589.96,0.29160857]
[1743909906853,0.31117375,591.19,589.97,0.29160857]
[1743909907055,0.33831216,591.17,589.98,0.29160857]
[1743909907254,0.31117375,591.16,589.96,0.29160857]
[1743909907454,0.33831216,591.17,589.92,0.29462188]
[1743909907653,0.553,591.15,589.92,0.29462188]
[1743909907856,0.31118759,591.14,589.93,0.29164468]
[1743909908153,0.33833505,591.13,589.93,0.29164468]
[1743909908358,0.31119219,591.12,589.94,0.29164919]
[1743909908558,0.3383465,591.11,589.93,0.29164919]
[1743909908758,0.3383465,591.11,589.94,0.29164919]
[1743909908958,0.3383465,591.11,589.93,0.29164919]
[1743909909158,0.3383465,591.11,589.94,0.29164919]
[1743909909361,0.29464184,591.1,589.91,0.29464184]
[1743909909560,0.29464184,591.1,589.92,0.29164919]
[1743909910965,0.29464184,591.1,589.91,0.29464184]
[1743909911163,0.29464184,591.1,589.93,0.29164806]
[1743909911363,0.33835794,591.09,589.94,0.29164806]
[1743909911566,0.33835794,591.09,589.92,0.29164806]
[1743909911769,0.33835794,591.09,589.93,0.29164806]
[1743909911968,0.33835794,591.09,589.92,0.29164806]
[1743909912468,0.33835794,591.09,589.9,0.29466055]
[1743909912669,0.33835794,591.09,589.91,0.29164806]
[1743909913268,0.33835794,591.09,589.9,0.29466055]
[1743909913469,0.29465556,591.08,589.91,0.2916492]
[1743909913770,0.33836939,591.07,589.91,0.2916492]
[1743909914370,0.33836939,591.07,589.9,0.29466055]
[1743909914571,0.33836939,591.07,589.91,0.2916596]
[1743909915272,0.33836939,591.07,589.75,0.2916596]
[1743909915568,0.29467427,591.06,589.89,0.29467427]
[1743909915769,0.29467427,591.06,589.9,0.2916596]
[1743909915971,0.29467427,591.06,589.74,1.26423726]
[1743909916173,0.29467427,591.06,589.75,0.29166003]
[1743909916469,0.29467427,591.06,589.75,0.58633555]
[1743909916674,0.33838084,591.05,589.76,0.29166003]
[1743909918270,0.33838084,591.05,589.73,1.26423726]
[1743909918474,0.33838084,591.05,589.74,0.29165834]
[1743909918971,0.33838084,591.05,589.74,1.5558956]
[1743909919171,0.33838084,591.05,589.75,0.29165834]
[1743909919374,0.33838084,591.05,589.76,0.29165834]
[1743909919675,0.29466554,591.04,589.77,0.29165834]
[1743909919872,0.29466554,591.04,589.78,0.29165834]
[1743909920070,0.29466554,591.04,589.79,0.29165834]
[1743909920269,0.29466554,591.04,589.8,0.29165834]
[1743909920572,0.29466554,591.04,589.81,0.29165834]
[1743909920875,0.29466554,591.04,589.82,0.29165834]
[1743909921174,0.33838084,591.05,589.83,0.29165594]
[1743909921376,0.29467552,591.03,589.77,0.29165594]
[1743909921570,0.33839802,591.02,589.78,0.29165594]
[1743909921769,0.33839802,591.02,589.79,0.29165594]
[1743909921971,0.33839802,591.02,589.8,0.29165594]
[1743909922172,0.33839802,591.02,589.81,0.29165594]
[1743909922370,0.33839802,591.02,589.82,0.29165594]
[1743909922575,0.33839802,591.02,589.79,0.29467801]
[1743909922776,0.33839802,591.02,589.8,0.29165657]
[1743909923075,0.33839802,591.02,589.81,0.29165657]
[1743909923376,0.33839802,591.02,589.82,0.29165657]
[1743909923671,0.33839802,591.02,589.83,0.29165657]
[1743909923875,0.33839802,591.02,589.79,0.29467801]
[1743909924076,0.33839802,591.02,589.8,0.29166011]
[1743909924377,0.29467801,591.01,589.81,0.29166011]
[1743909924573,0.33840947,591.0,589.82,0.29166011]
[1743909924777,0.33840947,591.0,589.83,0.29166011]
[1743909924981,0.33840947,591.0,589.84,0.29166011]
[1743909925180,0.33840947,591.0,589.85,0.29166011]
[1743909925375,0.33840947,591.0,589.86,0.29166011]
[1743909925575,0.33840947,591.0,589.82,0.29166011]
[1743909925776,0.33840947,591.0,589.83,0.29166011]
[1743909925982,0.33840947,591.0,589.84,0.29166011]
[1743909926176,0.33840947,591.0,589.85,0.29166011]
[1743909926380,0.33840947,591.0,589.82,0.29166011]
[1743909926580,0.33840947,591.0,589.83,0.29166011]
[1743909926780,0.33840947,591.0,589.84,0.29166011]
[1743909926976,0.33840947,591.0,589.85,0.29166011]
[1743909927176,0.33840947,591.0,589.82,0.29166011]
[1743909927376,0.29467427,590.99,589.83,0.29166011]
[1743909927576,0.33842092,590.98,589.82,0.29166011]
[1743909927782,0.33842092,590.98,589.83,0.29166011]
[1743909927981,0.33842092,590.98,589.82,0.29166011]
[1743909928176,0.33842092,590.98,589.84,0.29166011]
[1743909928479,0.33842092,590.98,589.85,0.29166011]
[1743909928682,0.33842092,590.98,589.82,0.29166011]
[1743909928880,0.33842092,590.98,589.83,0.29166011]
[1743909929182,0.33842092,590.98,589.84,0.29166011]
[1743909929481,0.33842092,590.98,589.85,0.29166011]
[1743909929780,0.33842092,590.98,589.86,0.29166011]
[1743909929977,0.33842092,590.98,589.82,0.29166011]
[1743909930175,0.33842092,590.98,589.87,0.29166011]
[1743909930476,0.33842092,590.98,589.88,0.29166011]
[1743909930680,0.33842092,590.98,589.8,0.29166011]
[1743909930880,0.33842092,590.98,589.81,0.29166011]
[1743909931081,0.33842092,590.98,589.82,1.26423726]
[1743909931277,0.33842092,590.98,589.83,0.29166011]
[1743909931477,0.29465556,590.97,589.83,0.29166011]
[1743909931678,0.33843238,590.96,589.83,0.29166011]
[1743909933280,0.33843238,590.96,589.86,1.26423726]
[1743909933485,0.33843238,590.96,589.87,0.29166011]
[1743909934382,0.33843238,590.96,589.86,1.26423726]
[1743909934587,0.29465057,590.95,589.87,0.29165915]
[1743909934785,0.33844383,590.94,589.87,0.29165915]
[1743909937183,0.85044383,590.94,589.87,0.29165915]
[1743909937486,0.29465306,590.93,589.87,0.29165915]
[1743909937686,0.33845529,590.92,589.87,0.29165915]
[1743909938687,0.33845529,590.92,589.98,1.26423726]
[1743909938986,0.33845529,590.92,589.99,0.29165915]
[1743909939387,0.29466554,590.91,589.98,1.26423726]
[1743909939588,0.29466554,590.91,589.99,0.29165686]
[1743909940591,0.29466554,590.91,589.99,1.55589412]
[1743909940791,0.29466554,590.91,590.0,0.29165686]
[1743909942087,0.33845529,590.92,590.0,0.29165686]
[1743909942386,0.29466554,590.9,590.0,0.29165686]
[1743909942791,0.29466554,590.9,590.02,1.26423726]
[1743909942991,0.29466554,590.9,590.03,0.29165686]
[1743909944595,0.29466554,590.9,590.09,1.26423726]
[1743909944892,0.29466554,590.9,590.1,0.29165686]
[1743909945092,0.33845529,590.92,590.1,0.29165686]
[1743909945392,0.29465306,590.89,590.1,0.29165686]
[1743909947596,0.29465306,590.89,590.09,1.26423726]
[1743909947791,0.29465306,590.89,590.1,0.29165655]
[1743909948097,0.33845529,590.92,590.1,0.29165655]
[1743909949497,0.29465057,590.91,590.09,1.26423726]
[1743909949797,0.29465057,590.91,590.1,0.29165624]
[1743909951001,0.29465057,590.91,590.1,1.5558935]
[1743909951195,0.33845529,590.92,590.11,0.29165624]
[1743909951400,0.29465306,590.9,590.11,0.29165624]
[1743909954105,0.33845529,590.92,590.11,0.29165624]
[1743909955401,0.29464932,590.91,590.11,0.29165624]
[1743909955805,0.29464932,590.91,590.07,0.29165624]
[1743909956305,0.29464932,590.91,590.06,1.26423726]
[1743909956501,0.29464932,590.91,590.07,0.29165624]
[1743909957101,0.33845529,590.92,590.07,0.29165624]
[1743909958406,0.29465431,590.91,590.07,0.29165624]
[1743909959105,0.29465431,590.91,590.06,1.26423726]
[1743909960207,0.33845529,590.92,589.86,1.26423726]
[1743909960408,0.29465681,590.9,589.87,0.29165669]
[1743909961107,0.29465681,590.9,589.86,1.26423726]
[1743909961307,0.29465681,590.9,589.87,0.29165623]
[1743909961607,0.553,590.89,589.87,0.29165623]
[1743909961906,0.553,590.89,589.87,1.55589349]
[1743909962107,0.553,590.89,589.88,0.29165623]
[1743909963410,0.294683,590.88,589.88,0.29165623]
[1743909963608,1.004683,590.88,589.88,0.29165623]
[1743909966012,1.004683,590.88,589.87,1.26423726]
[1743909966212,0.71,590.88,589.88,0.29165969]
[1743909966409,0.2946855,590.87,589.88,0.29165969]
[1743909967715,0.2946855,590.87,589.87,1.26423726]
[1743909968012,0.2946855,590.87,589.88,0.29166]
[1743909969113,0.71,590.88,589.88,0.29166]
[1743909969413,0.2946855,590.86,589.88,0.29166]
[1743909971416,0.2946855,590.86,590.08,1.26423726]
[1743909971615,0.2946855,590.86,590.09,0.29166]
[1743909972113,0.71,590.88,590.09,0.29166]
[1743909972411,0.2946593,590.85,590.09,0.29166]
[1743909975916,0.2946593,590.85,590.03,0.29166]
[1743909976819,0.2946593,590.85,590.02,1.26423726]
[1743909977016,0.2946593,590.85,590.03,0.29166]
[1743909977722,0.563,590.84,590.02,0.29166]
[1743909977927,0.563,590.84,590.03,0.29166]
[1743909978127,0.563,590.84,590.02,0.29166]
[1743909978322,0.563,590.84,590.04,0.29166]
[1743909978521,0.29467677,590.83,590.03,0.29166]
[1743909978724,0.29467677,590.83,590.01,1.26423726]
[1743909978922,0.29467677,590.83,590.02,0.29166001]
[1743909980127,0.29467677,590.83,590.06,1.26423726]
[1743909980328,0.29467677,590.83,590.07,0.29166001]
[1743909981125,0.563,590.84,590.07,0.29166001]
[1743909982528,0.29466055,590.83,590.07,0.29166001]
[1743909983432,0.29466055,590.83,590.06,1.26423726]
[1743909983630,0.29466055,590.83,590.07,0.2916586]
[1743909984131,0.563,590.84,590.07,0.2916586]